Cogmind - Beta 17.1 @@@ ROGUE MODE // 2026.09.17 @ 20:29:21 Player: Kite Result: Self-destructed Performance ------------- Evolutions (4) 2000 Regions Visited (6) 1200 Robots Destroyed (72) 360 Value Destroyed (1916) 1916 Prototype IDs (15) 300 Alien Tech Used (0) 0 Bonus (1069) 1069 TOTAL SCORE: 6845 Bonus ------- Follower Combat Kills 269 Registered with UFD 300 Met Optimus in HQ 500 Cogmind --------- Core Integrity 113/850 Matter 300/300 Energy 290/290 System Corruption 5% Temperature Hot (200) Movement Core (250) Ox4 Location -6/Extension Parts ------- > --- POWER (2) -------- Improved Deuterium Engine > --- PROPULSION (6) --- (None) > --- UTILITY (5) ------ (None) > --- WEAPON (2) ------- Companion Sword > --- INVENTORY (5) ---- Wheel Wheel High-powered Tractor Beam Missile Launcher CPS Tube (2) Peak State ------------ > --- POWER ------------ Light Nuclear Core Micro Nuclear Core > --- PROPULSION ------- Overtuned Treads Overtuned Treads Cargo Legs Armored Huge Wheel > --- UTILITY ---------- Scrap Suit Huge Storage Unit Improved Melee Analysis Suite Advanced Melee Analysis Suite Force Field Hacking Suite > --- WEAPON ----------- Improved Datajack Companion Sword > --- INVENTORY -------- Light Nuclear Core Armored Treads Improved Medium Treads Armored Leg Scrap Suit Scrap Suit Compact Battery Matter Compressor Deep Structural Scanner Improved Sensor Array Improved Signal Interpreter IFF Parser IFF Parser Force Field Force Field Hacking Suite Shock Bomb Launcher Improved Proton Missile Launcher CPS Tube CPS Tube CPS Tube Botcube [Rating: 81] Favorites ----------- Power Deuterium Engine Engine Deuterium Engine Power Core Micro Nuclear Core Propulsion Compact Wheel Treads Light Treads Leg Cargo Legs Wheel Compact Wheel Utility High-capacity Storage Unit Device Improved Heat Sink Storage High-capacity Storage Unit Processor Advanced Melee Analysis Suite Hackware Hacking Suite Protection Improved Propulsion Shielding Weapon Companion Sword Energy Gun Small Laser Ballistic Gun Assault Rifle Ballistic Cannon Assault Cannon Launcher Improved Proton Missile Launcher Special Weapon CPS Tube Slashing Weapon Companion Sword Special Melee Weapon Improved Datajack Build | -11 -10 -10 -8 -8 -6 -6 ------- Run | Yrd Mat Sub Rec Scr Fac Ext Slots Evolved 8 | . . . . . 8 . Power 1 | . . . . . 1 . Propulsion 4 | . . . . . 4 . Utility 3 | . . . . . 3 . Weapon . | . . . . . . . Parts Attached 93 | 6 5 12 6 13 26 25 Power 16 | 1 1 2 1 1 6 4 Engine 10 | 1 . 2 1 1 1 4 Core 6 | . 1 . . . 5 . Reactor . | . . . . . . . Propulsion 37 | 2 . 5 3 4 10 13 Treads 14 | 2 . 1 . 4 4 3 Leg 3 | . . . . . 1 2 Wheel 20 | . . 4 3 . 5 8 Hover . | . . . . . . . Flight . | . . . . . . . Utility 21 | 1 2 . 1 3 7 7 Device 9 | . 1 . . . 5 3 Storage 3 | 1 1 . . 1 . . Processor 4 | . . . . 1 1 2 Hackware 1 | . . . . . 1 . Protection 4 | . . . 1 1 . 2 Artifact . | . . . . . . . Weapon 19 | 2 2 5 1 5 3 1 Energy Gun 7 | . 2 4 . . . 1 Energy Cannon . | . . . . . . . Ballistic Gun 4 | 2 . . . 2 . . Ballistic Cannon 2 | . . . . 2 . . Launcher 2 | . . . . . 2 . Special Weapon 1 | . . . . . 1 . Impact Weapon . | . . . . . . . Slashing Weapon 2 | . . 1 . 1 . . Piercing Weapon . | . . . . . . . Special Melee Weapon 1 | . . . 1 . . . Unidentified Prototypes 1 | . . . . 1 . . Corrupted Parts 1 | . . . . 1 . . System Corruption 9 | . . . . 9 . . Parts Lost 42 | . 1 7 2 . 17 15 Power 8 | . . 1 . . 5 2 Propulsion 19 | . . 4 1 . 6 8 Utility 9 | . . . . . 4 5 Weapon 6 | . 1 2 1 . 2 . Highest Loss Streak 11 | . 1 5 2 . 9 11 To Critical Strikes 1 | . . . . . 1 . Average Backups 15 | 2 8 18 17 17 20 4 Power . | . . . . . . . Propulsion 3 | 1 3 2 5 5 2 1 Utility 6 | . 1 4 7 7 12 . Weapon 3 | . 3 10 3 2 2 . Tool/Special . | . . . . . . . Unused Backups 47 | 1 1 5 8 11 18 3 Power 2 | 1 . . . 1 . . Propulsion 6 | . 1 . 1 2 2 . Utility 23 | . . 2 1 5 14 1 Weapon 12 | . . 3 5 3 . 1 Tool/Special 4 | . . . 1 . 2 1 Average Slot Usage (%) 83 | . 84 90 85 83 78 74 Engine 9 | . . 8 14 11 5 8 Core 1 | . 6 . . . 5 . Treads 12 | . 28 17 . 6 23 8 Wheel 15 | . . 10 26 19 3 23 Device 7 | . 6 14 7 . 11 14 Storage 10 | . 14 14 14 12 5 . Processor 3 | . . . . 6 8 4 Protection 3 | . . . 7 7 . 3 Energy Gun 6 | . 12 20 13 . . . Ballistic Gun 1 | . 15 . . . . . Ballistic Cannon 2 | . . . . 7 . . Slashing Weapon 4 | . . 3 . 6 5 6 Special Melee Weapon 1 | . . . 1 3 . . Peak Build Rating 81 | 6 12 14 17 30 81 52 Average Rating 25 | 4 8 11 14 20 65 36 On Entrance 11 | . 6 12 14 17 26 2 Avg Prop Armor Cover (%) 16 | . . 14 13 15 19 16 Naked Turns 11 | . . . . . 11 . Heaviest Build 109 | 13 48 49 54 100 109 35 Greatest Support 116 | 40 40 40 32 40 116 78 Greatest Overweight (x) 10 | . 1 4 4 5 10 1 Average Overweight (x) 1 | . . 2 1 1 1 . Largest Inventory Capacity 25 | 8 20 20 20 25 25 5 Average Capacity 18 | 6 12 20 20 21 24 5 Most Carried 25 | 5 17 20 20 25 25 5 Average Carried 17 | 2 8 19 19 20 24 4 Final Capacity 25 | 8 20 20 20 25 5 5 Final Carried 25 | 4 17 20 20 25 5 5 Scrap Suit Usage (%) 6 | . . . . . 18 31 Parts Cannibalized 1 | . . . . . 1 . Class Distribution -------------------- 50% | Commander-Mutant 33% | Mutant 15% | Scavenger-Mutant Dominant Class ---------------- Mutant | -10/Materials Mutant | -10/Subcaves Commander-Mutant | -8/Recycling Commander-Mutant | -8/Scraptown Commander-Mutant | -6/Factory Scavenger-Mutant | -6/Extension Resources | -11 -10 -10 -8 -8 -6 -6 ----------- Run | Yrd Mat Sub Rec Scr Fac Ext Matter Collected 1708 | 50 177 293 86 103 723 276 Remotely . | . . . . . . . Salvage Created 3549 | 41 225 352 459 . 1427 1045 Parts 164 | 5 15 14 22 . 69 39 Haulers Intercepted 2 | . 1 . . . . 1 Recyclers Shooed 4 | . . . 2 . 2 . Parts Field Recycled . | . . . . . . . Retrieved Matter . | . . . . . . . Parts Self-Destructed 9 | . . 9 . . . . Prevented . | . . . . . . . Parts Restored . | . . . . . . . Kills | -11 -10 -10 -8 -8 -6 -6 ------- Run | Yrd Mat Sub Rec Scr Fac Ext Combat Hostiles Destroyed 38 | . 4 9 2 . 17 6 Melee 23 | . 1 . . . 16 6 Guns 13 | . 3 8 2 . . . Classes Destroyed 15 | 2 2 3 4 . 4 . Worker 6 | 1 . . . . 4 1 Builder 5 | . . . 1 . . 4 Tunneler 6 | 1 . . 1 . 1 3 Hauler 2 | . 1 . . . . 1 Recycler 10 | . . . 4 . 3 3 Mechanic 2 | . . . . . 2 . Turret 2 | . . 2 . . . . Swarmer 10 | . . 4 . . 6 . Grunt 8 | . 4 . . . 2 2 Duelist 3 | . . . . . 3 . Protector 1 | . . . . . 1 . Sentry 5 | . . . 1 . 1 3 Hunter 3 | . . . . . 3 . Programmer 4 | . . . 1 . 2 1 Subdweller 5 | . . 5 . . . . Best Kill Streak 6 | 1 2 6 4 . 5 5 Combat Bots Only 4 | . 2 4 1 . 4 3 Max Kills in Single Turn 1 | 1 1 1 1 . 1 1 Gunslinging . | . . . . . . . Exploded . | . . . . . . . Melee 1 | . 1 . . . 1 1 Uniques/NPCs Destroyed . | . . . . . . . Combat | -11 -10 -10 -8 -8 -6 -6 -------- Run | Yrd Mat Sub Rec Scr Fac Ext Hostile Shots Fired 623 | . 17 99 12 . 296 199 Missed 187 | . 3 38 3 . 82 61 Hits 436 | . 14 61 9 . 214 138 Melee 15 | . . . . . 15 . Projectile 421 | . 14 61 9 . 199 138 AOE 1 | . . 1 . . . . Critical Strikes 11 | . . 1 . . 7 3 Part Disruptions 2 | . . . . . 2 . Damage Taken 6309 | . 208 838 131 . 3241 1891 Core 947 | . 28 168 14 . 364 373 Absorbed by Shields 362 | . . . . . 362 . Redirected to Shielding 54 | . . . . . . 54 Regen/Repaired (Parts) 1 | . . . . . 1 . Core Remaining (%) 58 | 100 . . . 16 . . Volleys Fired 113 | 7 28 40 30 . 8 . Largest 2 | 2 2 2 2 . 1 . Hottest 105 | 40 80 105 105 . 43 . Shots Fired 196 | 14 54 75 45 . 8 . Gun 188 | 14 54 75 45 . . . Cannon . | . . . . . . . Launcher 6 | . . . . . 6 . Special 2 | . . . . . 2 . Kinetic 48 | 14 34 . . . . . Thermal 127 | . 20 62 45 . . . Explosive . | . . . . . . . Electromagnetic 19 | . . 13 . . 6 . Robot Hit Streak 14 | 3 9 13 14 . 1 . Robot Miss Streak 4 | 2 4 3 3 . 3 . Penetration Max . | . . . . . . . Secondary Targets . | . . . . . . . Shots Hit Robots 234 | 7 33 48 26 . 66 54 Core Hits 102 | 5 11 21 15 . 36 14 Critical Kills . | . . . . . . . Critical Parts Destroyed . | . . . . . . . Critical Strikes 7 | . . 5 . . . 2 Burn 4 | . . 4 . . . . Corrupt 1 | . . 1 . . . . Melee Attacks 149 | . . 2 . . 76 71 Impact . | . . . . . . . Slashing 146 | . . 2 . . 73 71 Piercing . | . . . . . . . Sneak Attacks 31 | . . . . . 17 14 Combat Hostiles 2 | . . . . . 1 1 Follow-up Attacks . | . . . . . . . Damage Inflicted 7741 | 82 346 659 415 . 3608 2631 Guns 1495 | 82 339 659 415 . . . Cannons . | . . . . . . . Explosions 625 | . . . . . 625 . Melee 5614 | . . . . . 2983 2631 Ramming 7 | . 7 . . . . . Kinetic 298 | 82 216 . . . . . Thermal 1034 | . 123 496 415 . . . Explosive . | . . . . . . . Electromagnetic 788 | . . 163 . . 625 . Impact . | . . . . . . . Slashing 5614 | . . . . . 2983 2631 Piercing . | . . . . . . . Highest Corruption 9 | . . . 2 9 3 5 Average Corruption 2 | . . . 1 9 1 3 Corruption Purged . | . . . . . . . Corruption Blocked . | . . . . . . . Effects 35 | . . . 12 . 1 22 Message Errors 12 | . . . 3 . . 9 Matter Fused 8 | . . . 5 . . 3 Heat Flow Errors 1 | . . . . . . 1 Energy Discharges 6 | . . . 3 . . 3 Parts Fused 1 | . . . . . . 1 Data Loss (minor) 4 | . . . . . 1 3 Data Loss (major) 2 | . . . . . . 2 Misfires 1 | . . . 1 . . . Overload Shots . | . . . . . . . Overflow Damage 678 | . . . . . 279 399 Projectiles . | . . . . . . . Explosions 13 | . . . . . 13 . Melee 665 | . . . . . 266 399 Knockbacks . | . . . . . . . Impact . | . . . . . . . Kinetic . | . . . . . . . Secondary . | . . . . . . . Self-Inflicted Damage 35 | . . . . . 35 . Shots 3 | . . . . . 3 . Rammed 2 | . 2 . . . . . Targets Rammed 3 | . 3 . . . . . Kicked . | . . . . . . . Crushed 1 | . 1 . . . . . Highest Temperature 293 | . 4 . 52 . 14 293 Average Temperature 34 | . 3 . 12 . 6 145 Received Heat Transfer 1057 | . 114 84 9 . 168 682 Siege Activations . | . . . . . . . Martial Activations . | . . . . . . . Shielding Activations . | . . . . . . . Robots Disrupted . | . . . . . . . Combat Hostiles . | . . . . . . . Robots Corrupted 2 | . . 1 . . 1 . Combat Hostiles 2 | . . 1 . . 1 . Parts Fried 2 | . . . . . 2 . Impact Corruptions . | . . . . . . . Robots Melted . | . . . . . . . Combat Hostiles . | . . . . . . . Parts Melted 5 | . . . 3 . . 2 Heat Transferred 2731 | . 275 1450 1006 . . . Parts Sabotaged 3 | . . . . . 3 . Parts Stolen . | . . . . . . . Parts Stripped . | . . . . . . . Power Chain Reactions . | . . . . . . . Alert | -11 -10 -10 -8 -8 -6 -6 ------- Run | Yrd Mat Sub Rec Scr Fac Ext Maximum Alert Level . | . . . . . . . Low Security (%) 100 | 100 100 . 100 . 100 100 Level 1 . | . . . . . . . Level 2 . | . . . . . . . Level 3 . | . . . . . . . Level 4 . | . . . . . . . Level 5 . | . . . . . . . High Security . | . . . . . . . Max Security . | . . . . . . . Peak Influence 184 | 5 40 . 135 . 184 54 Initial 115 | . 3 . 115 . . 45 Average 26 | . 6 . 24 . 47 15 Influence Increases 1700 | 10 114 255 203 . 735 383 Destroy 0b10 Robot/C 880 | . 80 120 60 . 420 200 Destroy 0b10 Robot/NC 165 | 10 5 . 30 . 60 60 Destroy Leader 124 | . 22 . . . 82 20 Allied During Kill 77 | . . . 9 . 54 14 Successful Hack 59 | . 7 . 14 . 10 28 Select Force Hacks 90 | . . . 90 . . . Disable Machine 75 | . . . . . 75 . Destroy Structure 5 | . . . . . 4 1 Lose Combat Pursuer 225 | . . 135 . . 30 60 Influence Decreases 1695 | 5 119 15 443 . 642 471 Entered New Map 175 | . 2 . 125 . . 48 Time Decay 964 | 5 117 15 256 . 287 284 Lost Part 247 | . . . 20 . 170 57 Lost Ally 309 | . . . 42 . 185 82 Squads Dispatched 7 | . 1 . . . 4 2 Investigation 3 | . . . . . 1 2 Extermination 2 | . . . . . 2 . Reinforcement 2 | . 1 . . . 1 . Assault . | . . . . . . . Garrison . | . . . . . . . Intercept . | . . . . . . . Searches Triggered . | . . . . . . . Construction Impeded . | . . . . . . . Haulers Reinforced . | . . . . . . . Active Scanning Responses . | . . . . . . . Cargo Convoy Interrupts 1 | . . . . . 1 . Stealth | -11 -10 -10 -8 -8 -6 -6 --------- Run | Yrd Mat Sub Rec Scr Fac Ext Distress Signals 8 | . 1 . . . 3 4 Communications Jammed . | . . . . . . . Distress Signals . | . . . . . . . Times Spotted 87 | . 10 14 2 . 43 18 Peak Tracking Total 12 | . 3 3 1 . 12 5 Tactical Retreats 10 | . . 4 . . 2 4 Traps | -11 -10 -10 -8 -8 -6 -6 ------- Run | Yrd Mat Sub Rec Scr Fac Ext Traps Triggered 5 | . 1 . . . 1 3 Indirectly 1 | . . . . . 1 . Trap Hack Attempts . | . . . . . . . Triggered . | . . . . . . . Disarmed . | . . . . . . . Reprogrammed . | . . . . . . . Reused . | . . . . . . . Traps Extracted . | . . . . . . . Installed . | . . . . . . . Triggered . | . . . . . . . Machines | -11 -10 -10 -8 -8 -6 -6 ---------- Run | Yrd Mat Sub Rec Scr Fac Ext Machines Disabled 7 | . . 2 . . 5 . Max in Single Turn 3 | . . 1 . . 3 . Garrison Access 1 | . . . . . 1 . Machines Repaired . | . . . . . . . Machines Dismantled . | . . . . . . . Machines Sabotaged . | . . . . . . . Overloaded Fab Kills . | . . . . . . . Hacking | -11 -10 -10 -8 -8 -6 -6 --------- Run | Yrd Mat Sub Rec Scr Fac Ext Machines Accessed 23 | . 1 1 8 4 4 5 Terminals 13 | . 1 . 5 . 2 5 Fabricators . | . . . . . . . Repair Stations . | . . . . . . . Recycling Units 4 | . . . 3 . 1 . Scanalyzers . | . . . . . . . Garrison Access 1 | . . . . . 1 . Total Hacks 62 | . 2 1 15 24 9 11 Successful 42 | . 1 1 8 24 4 4 Failed 20 | . 1 . 7 . 5 7 Catastrophic 5 | . 1 . 1 . 1 2 Database Lockouts . | . . . . . . . Manual 21 | . 2 . 16 . 3 . Terminals 31 | . 2 . 12 . 6 11 Fabricators . | . . . . . . . Repair Stations . | . . . . . . . Recycling Units 5 | . . . 3 . 2 . Scanalyzers . | . . . . . . . Garrison Access 1 | . . . . . 1 . Terminal Hacks 32 | . 1 1 . 24 2 4 Record 23 | . . . . 23 . . Part Schematic 1 | . 1 . . . . . Open Door 5 | . . . . 1 . 4 Emergency Access Points 1 | . . . . . 1 . Alert Level 1 | . . . . . 1 . Proto ID Catalog 1 | . . 1 . . . . Fabricator Hacks . | . . . . . . . Repair Station Hacks . | . . . . . . . Recycling Unit Hacks . | . . . . . . . Scanalyzer . | . . . . . . . Garrison Access Hacks 1 | . . . . . 1 . Seal Access 1 | . . . . . 1 . Unauthorized Hacks 9 | . . . 8 . 1 . Terminals 5 | . . . 5 . . . Skim 5 | . . . 5 . . . Fabricators . | . . . . . . . Repair Stations . | . . . . . . . Recycling Units 4 | . . . 3 . 1 . Tunnel 3 | . . . 3 . . . Scrapoids 1 | . . . . . 1 . Scanalyzers . | . . . . . . . Garrison Access . | . . . . . . . Data Cores Recovered . | . . . . . . . Used . | . . . . . . . Hacking Detections 12 | . 1 . 4 . 2 5 Full Trace Events 1 | . . . . . . 1 Feedback Events . | . . . . . . . Feedback Blocked . | . . . . . . . Robot Schematics Acquired . | . . . . . . . Robots Built . | . . . . . . . Authchips . | . . . . . . . Time . | . . . . . . . Total Robot Build Rating . | . . . . . . . Part Schematics Acquired 1 | . 1 . . . . . Parts Built . | . . . . . . . Authchips . | . . . . . . . Time . | . . . . . . . Total Part Build Rating . | . . . . . . . Part Studies Acquired . | . . . . . . . Parts Repaired . | . . . . . . . Time . | . . . . . . . Parts Recycled . | . . . . . . . Recycled Matter . | . . . . . . . Retrieved Matter . | . . . . . . . Retrieved Components . | . . . . . . . Parts Scanalyzed . | . . . . . . . Part Schematics Acquired . | . . . . . . . Parts Damaged . | . . . . . . . Bothacking | -11 -10 -10 -8 -8 -6 -6 ------------ Run | Yrd Mat Sub Rec Scr Fac Ext Used RIF Installer . | . . . . . . . Robots Hacked 3 | . . . . . 3 . Non-combat 2 | . . . . . 2 . Combat . | . . . . . . . Robot Hacks Applied 2 | . . . . . 2 . find_chute 1 | . . . . . 1 . find_recycling 1 | . . . . . 1 . Manual 1 | . . . . . 1 . Relay Couplers Released . | . . . . . . . Fabnet Peak Effective % . | . . . . . . . Robots Rewired 13 | . . . 13 . . . Allies Hacked 1 | . . . . . . 1 Hacks Repelled . | . . . . . . . Allies | -11 -10 -10 -8 -8 -6 -6 -------- Run | Yrd Mat Sub Rec Scr Fac Ext Total Allies 25 | . . . 13 . 6 6 Largest Group 13 | . . . 13 9 9 4 Highest-Rated Group 169 | . . . 169 117 154 113 Highest-Rated Ally 31 | . . . 27 27 31 31 Initial UFD Resources 23 | . . . . . 23 20 Total Orders 3 | . . . . 3 . . STAY 1 | . . . . 1 . . FOLLOW 2 | . . . . 2 . . Ally Attacks 123 | . . . 5 . 65 53 Total Damage 2078 | . . . 92 . 1081 905 Kills 11 | . . . 1 . 6 4 Allies Corrupted 2 | . . . . . 1 1 Allies Melted . | . . . . . . . Intel | -11 -10 -10 -8 -8 -6 -6 ------- Run | Yrd Mat Sub Rec Scr Fac Ext Active Infowar (turns) 1345 | . . . . . 406 939 Optics 733 | . . . . . . 733 IFF 406 | . . . . . 406 . Terrain 463 | . . . . . . 463 Seismic 763 | . . . . . . 763 Robot Analysis Total . | . . . . . . . Derelict Logs Recovered 6 | . . 1 . 5 . . Drone Launches . | . . . . . . . Drone Recoveries . | . . . . . . . Exploration | -11 -10 -10 -8 -8 -6 -6 ------------- Run | Yrd Mat Sub Rec Scr Fac Ext Turns Passed 8329 | 115 634 1610 1132 2607 1260 971 Spaces Moved 4843 | 55 275 855 772 1722 603 561 Core 246 | 6 . . . 206 20 14 Treads 1010 | 49 275 189 . 179 318 . Legs . | . . . . . . . Wheels 3587 | . . 666 772 1337 265 547 Hover . | . . . . . . . Flight . | . . . . . . . Fastest Speed 50 | 50 160 107 105 100 50 80 Average Speed 137 | 148 186 155 113 142 147 93 Slowest Speed 320 | 160 240 240 140 320 225 115 Overloaded Moves . | . . . . . . . Propulsion Burnouts . | . . . . . . . Robots Hopped . | . . . . . . . Potential Cave-ins . | . . . . . . . Cave-ins Triggered . | . . . . . . . Exploration Rate (%) 44 | 4 32 46 89 82 15 40 Regions Visited 6 Branch Regions 4 Pre-discovered Areas 13 | . . 1 7 5 . . Known Exits Taken 3 | . . . 1 1 1 . Unknown Exits Taken 3 | 1 1 1 . . . . Scrap Searched 5 | . . 1 . 4 . . Spaces Dug 5 | . . . . . 4 1 Terrain Destroyed 5 | . . . . . 4 1 Melee 5 | . . . . . 4 1 Projectile . | . . . . . . . AOE . | . . . . . . . Terrain Rammed . | . . . . . . . Walls Destroyed . | . . . . . . . Machines Disabled . | . . . . . . . Actions | -11 -10 -10 -8 -8 -6 -6 --------- Run | Yrd Mat Sub Rec Scr Fac Ext Total 6124 | 74 344 1057 986 1891 866 906 Wait 597 | . 15 125 66 71 88 232 Move 4837 | 54 274 854 771 1721 602 561 Hop . | . . . . . . . Pick Up 124 | 6 14 12 12 47 25 8 Fast Attach 57 | 5 6 3 3 9 14 17 Attach 41 | 1 . 6 1 7 20 6 Detach 8 | . . 1 . 2 5 . Swap 20 | . 1 6 3 2 5 3 Drop 93 | 1 3 8 15 32 23 11 Fire 113 | 7 28 40 30 . 8 . Melee 144 | . . 2 . . 76 66 Ram . | . . . . . . . Kick . | . . . . . . . Crush 3 | . 3 . . . . . Escape Stasis 2 | . . . . . . 2 Rewire 85 | . . . 85 . . . Trap . | . . . . . . . Miscellaneous . | . . . . . . . Route ------- -11/Scrapyard -10/Materials (discovered 2 exits: [*Mat] / *Sub) -10/Subcaves (discovered 2 exits: [*Mat] / *Rec) -8/Recycling (discovered 2 exits: *Fac / *Scr) -8/Scraptown (discovered 2 exits: *Fac x2) -6/Factory (discovered 5 exits: Fac x2 / Low / *Ext x2) -6/Extension History --------- Turn | Location | Event 6 | -11/Scrapyard | Discovered new exit (range 14) 116 | -11/Scrapyard | Entered Materials 318 | -10/Materials | Build established: Mutant 334 | -10/Materials | Discovered new exit (range 13) 510 | -10/Materials | Discovered new exit (range 11) 750 | -10/Materials | Entered Subcaves 751 | -10/Subcaves | Approached by a straggling Scientist 1209 | -10/Subcaves | Shifting Twisted Machinery released Scrap Shield 1214 | -10/Subcaves | Shifting Twisted Machinery released Sub. Monowheel 1428 | -10/Subcaves | Lost 5 parts (3n2w) 1686 | -10/Subcaves | Discovered new exit (range 15) 1697 | -10/Subcaves | Learned location of Zion (-7) 1697 | -10/Subcaves | Met a Zionite searching for "candidates" 1832 | -10/Subcaves | Visited 4L-MR0's lab 1847 | -10/Subcaves | Found Cargo Legs 2293 | -10/Subcaves | Core integrity fell below 50% 2334 | -10/Subcaves | Discovered new exit (range 11) 2360 | -10/Subcaves | Entered Recycling 2363 | -8/Recycling | Core integrity fell below 20% 2821 | -8/Recycling | Build established: Commander-Mutant 2842 | -8/Recycling | Lost 3 allies 2910 | -8/Recycling | Discovered new exit (range 16) 3093 | -8/Recycling | Learned 2 Storage zone layouts 3157 | -8/Recycling | Identified exit to Scraptown 3354 | -8/Recycling | Scanned before Scraplab entrance 3377 | -8/Recycling | Learned location of Extension (-6) 3458 | -8/Recycling | Entered Scraplab 3492 | -8/Recycling | Entered Scraptown 3492 | -8/Scraptown | Accompanied by 9 allies 3492 | -8/Scraptown | System corruption cleaned by C-Scrubber 3493 | -8/Scraptown | Identified exit to Factory 3498 | -8/Scraptown | System corruption cleaned by C-Scrubber 3730 | -8/Scraptown | Heard Great Nut preacher, LISTEN AND RECITE! 3902 | -8/Scraptown | Visited UFD Registry 3902 | -8/Scraptown | Registered with UFD as "Gammasourcer" 3956 | -8/Scraptown | Scanned Subdweller tech in exchange for log data 3959 | -8/Scraptown | Learned Factory interactive machine intel 3960 | -8/Scraptown | Learned location of 2 exits from Lower Caves 3962 | -8/Scraptown | Learned 8 Factory zone layouts 3963 | -8/Scraptown | Learned Factory security intel 4006 | -8/Scraptown | Guru changed UFD alias to "Matrixgrid" 4365 | -8/Scraptown | Visited DA-N13 Charitable Foundation 4376 | -8/Scraptown | Found DCF Scrap (30 items) 4445 | -8/Scraptown | Visited Botcube Research 4451 | -8/Scraptown | Found Botcube 4477 | -8/Scraptown | Visited Chapter 10 4507 | -8/Scraptown | Visited Sword Containment 4527 | -8/Scraptown | Visited Scrap Suit Storage 4549 | -8/Scraptown | Visited Abandonware Association 4675 | -8/Scraptown | Learned abandonware demo "HACKBUD.EXE" 4755 | -8/Scraptown | Delivered Scrap Shield to a Scientist 4870 | -8/Scraptown | Found Prototype Slashing Weapon 4870 | -8/Scraptown | Identified Companion Sword 4920 | -8/Scraptown | Found Scrap Suit 4923 | -8/Scraptown | Found Scrap Suit 4970 | -8/Scraptown | Visited Cartography Club 5141 | -8/Scraptown | Learned location of Mines (-8) 5141 | -8/Scraptown | Learned location of Storage (-8) 5141 | -8/Scraptown | Learned location of Lower Caves (-6) 5141 | -8/Scraptown | Learned location of Archives (-6) 5141 | -8/Scraptown | Learned location of Armory (-3) 5141 | -8/Scraptown | Learned 8 Factory zone layouts 5141 | -8/Scraptown | Learned 24 Factory zone layouts 5141 | -8/Scraptown | Learned 8 Access zone layouts 5141 | -8/Scraptown | Learned 12 Lower Caves zone layouts 5141 | -8/Scraptown | Learned 8 Upper Caves zone layouts 5141 | -8/Scraptown | Learned 20 Proximity Caves zone layouts 5141 | -8/Scraptown | Learned Research emergency access door positions 5141 | -8/Scraptown | Learned location of 1 exit from Research 5141 | -8/Scraptown | Learned location of 1 exit from Factory 5165 | -8/Scraptown | Found Deep Structural Scanner 5298 | -8/Scraptown | Visited Science Testing Area 5322 | -8/Scraptown | Visited Science Guys 5476 | -8/Scraptown | Found Scrap Suit 5928 | -8/Scraptown | Met Optimus 5928 | -8/Scraptown | Accepted into 0bPrime 6099 | -8/Scraptown | Entered Factory 6099 | -6/Factory | Accompanied by 9 allies 6099 | -6/Factory | Evolved 8 slots: Power x1, Propulsion x4, Utility x3 6100 | -6/Factory | Identified exit to Factory 6101 | -6/Factory | Identified exit to Lower Caves 6102 | -6/Factory | Identified exit to Extension 6104 | -6/Factory | Loaded intel: 56 interactive machine locations 6204 | -6/Factory | Attached CPS modules to Savior 3a 6662 | -6/Factory | Attached Cargo Legs, gained temporary slots: Utility x2 6718 | -6/Factory | Lost 4 allies 7129 | -6/Factory | Scrapoid reinforcements arrived 7243 | -6/Factory | Lost 5 allies 7298 | -6/Factory | Lost 4 parts (2p1n1u) 7319 | -6/Factory | Cargo convoy interrupted 7348 | -6/Factory | Released all parts (4) 7359 | -6/Factory | Entered Extension 7378 | -6/Extension | Lost 9 parts (2p3n2u2w) 7580 | -6/Extension | Build established: Scavenger-Mutant 7609 | -6/Extension | Disrupted transfer network 7706 | -6/Extension | Rescued a captive Derelict 7726 | -6/Extension | Rescued a captive Derelict 7826 | -6/Extension | Rescued a captive Derelict 7827 | -6/Extension | Rescued a captive Derelict 7850 | -6/Extension | Core integrity fell below 50% 8074 | -6/Extension | Rescued a captive Derelict 8074 | -6/Extension | Rescued a captive Derelict 8089 | -6/Extension | Spotted B-75 Beast 8289 | -6/Extension | Spotted B-75 Beast 8326 | -6/Extension | Core integrity fell below 20% 8330 | -6/Extension | Self-destructed Last Messages --------------- 08284_ Destroyed Structural Scanner. 08284_ U-05 Engineer destroyed. 08287_ Imp. Medium Treads destroyed. 08287_ Lgt. Treads destroyed. 08293_ Machine disabled. 08296_ W-25 Informer sends out distress signal. 08312_ Carbon-fiber Leg destroyed. 08316_ System corrupted: Matter fused (-8). 08316_ Acquired 8 matter. 08319_ Imp. Light Armor Plating destroyed. 08319_ Com. Wheel destroyed. 08321_ W-25 Informer sends out distress signal. 08322_ Power Shielding destroyed. 08322_ Lgt. Angular Momentum Engine destroyed. 08322_ Enh. Optical Array destroyed. 08322_ Critical hit (Blast). 08325_ Critical hit (Meltdown: +310). 08325_ Scrap Suit destroyed. 08325_ Knocked back. 08330_ Med. Treads destroyed. Map ----- +----------------------------------------------------+ | ## #?????????????????????????????????????????? | | ##############????????????????????????????? | | #????????????????????????????? | | ! ############ #????????????????????????????? | | ## #??????????# ####?????????????????????????? | | ?#######??????????# #?????????????????????????? | | ??????#####???????# #?????????????????????????? | | ??????# ######### ####??????????????????????? | | ??????# #??????????????????????? | | ??????# ############### #??????????????????????? | | ??????## ##?????????????# #??????????????????????? | | ######## #??????????????# #??????????????????????? | | #??????????????# #??????????????????????? | | ##########??????????????# #??????????????????????? | | ????????????????????????# #??????????????????????? | | ????????????????????????#!#??????????????????????? | | ??????????????????????### #??????????????????????? | | ????????????????????###T#!#??????????????????????? | | ????????????????????#[=!% #??????????????????????? | | ????????????????????# %%# #??????????????????????? | | ????????????????????###[#%#??????????????????????? | | ??????????????????????###!#??????????????????????? | | ????????????????????????# #??????????????????????? | | ????????????????????????#%#??????????????????????? | | ????????????????????????#%##?????????????????????? | | ???????????????????????##@####???????????????????? | | ???????????????????????#;%BB ##??????????????????? | | ???????????????????????##!BB;;#??????????????????? | | ????????????????????????;%%%; #??????????????????? | | ???????????????????????"wBB ???????????????? | | ??????????????????????# "BB " ????????????? | | ??????????????????????# RR #?????????? | | ??????????????????????# #?????????? | | ??????????????????????# R #?????????? | | ?????????????????????? ????????? | | ?????????????????????? C ??????? | | ????????????????????? ?????? | | ????????????????????? ??????? | | ???????????????????? R ??????? | | ????????????????????### ####??????? | | ??????????????????????# #?????????? | | ??????????????????????# #?????????? | | ??????????????????????# ??? #?????????? | | ??????????????????????# ???????????????? | | ???????????????????????#####T#"""#???????????????? | | ????????????????????????????#????????????????????? | | ?????????????????????????????????????????????????? | | | | | | | +----------------------------------------------------+ Best States ------------- Heat Dissipation 39 Energy Generation 29 Energy Capacity 440 Matter Stores 300 Matter Capacity 300 Sight Range 22 Terrain Scan Range 16 Terrain Scan Density 10 Armor Coverage 150 Core Shielding 20 Power Shielding 33 Propulsion Shielding 66 Evasion (%) 50 Melee Accuracy 14 Recoil Reduction 6 Offensive Hacking 10 Authchip Count 1 Item Schematics ----------------- Huge Storage Unit | -10/Materials | Hacked Robot Schematics ------------------ None Fabricated ------------ Nothing Repaired ---------- Nothing Studied --------- None Alien Tech Used ----------------- None Achievements -------------- None Challenges ------------ None Game ------ Seed TeslaMicrowarpSaw Manual? 0 Play Time 00:50:24 Cumulative 638.7 hours Start 2026.09.17 @ 19:36:54 End 2026.09.17 @ 20:29:21 Sessions 1 Manual Loads 0 Difficulty Rogue Special Mode None Game No. 511 Rogue 511 Adventurer 0 Explorer 0 Win Type - Total 22 Types 13/0/4/1/0/0/0/2/0/2 Lore% 70 Gallery% 74 Achievement% 71 Wizard Run 0 Options --------- Layout 1 ASCII 0 Keyboard 0 Movement Mouse Keybinds 0 Fullscreen 2 Font 24/Cog Map View 50x35 Zoom Use 42% Tactical HUD 1 Map Filters NONE Filters NONE Steam 1 RUN: 1d93bcec-1612-49fc-aae0-f2270e38ea04